Cogmind - Beta 9.3 @@@ ROGUE MODE // 2019.12.17 @ 11:14:15 // Winter2019/RPGLIKE Player: 3.14 Result: Self-destructed Performance ------------- Evolutions (1) 500 Regions Visited (2) 400 Robots Destroyed (24) 120 Value Destroyed (468) 468 Prototype IDs (0) 0 Alien Tech Used (0) 0 Bonus (0) 0 TOTAL SCORE: 1488 Bonus ------- None Cogmind --------- Core Integrity 423/1000 Matter 268/300 Energy 125/125 System Corruption 0% Temperature Cool (0) Movement Flying (40) Location -9/Materials Parts ------- > --- POWER (1) -------- Light Ion Engine > --- PROPULSION (1) --- Flight Unit > --- UTILITY (2) ------ Light Armor Plating Hacking Suite > --- WEAPON (1) ------- Autogun > --- INVENTORY (1) ---- Hammer Peak State ------------ > --- POWER ------------ Light Ion Engine > --- PROPULSION ------- Flight Unit > --- UTILITY ---------- Hardened Light Armor Plating Hacking Suite > --- WEAPON ----------- Autogun > --- INVENTORY -------- Hammer [Rating: 9] Favorites ----------- Power Light Ion Engine Engine Light Ion Engine Propulsion Flight Unit Treads Light Treads Hover Unit Hover Unit Flight Unit Flight Unit Utility Hacking Suite Hackware Hacking Suite Protection Light Armor Plating Weapon EM Pulse Gun Energy Gun EM Pulse Gun Ballistic Gun Light Assault Rifle Impact Weapon Hammer Build | -11 -10 -9 ------- Run | Scr Mat Mat Slots Evolved 1 | . . 1 Power . | . . . Propulsion . | . . . Utility 1 | . . 1 Weapon . | . . . Parts Attached 17 | 4 6 7 Power 4 | 2 1 1 Engine 4 | 2 1 1 Core . | . . . Reactor . | . . . Propulsion 4 | 1 2 1 Treads 1 | 1 . . Leg . | . . . Wheel . | . . . Hover 1 | . 1 . Flight 2 | . 1 1 Utility 4 | . 1 3 Device . | . . . Storage . | . . . Processor . | . . . Hackware 1 | . 1 . Protection 3 | . . 3 Artifact . | . . . Weapon 5 | 1 2 2 Energy Gun 1 | 1 . . Energy Cannon . | . . . Ballistic Gun 3 | . 1 2 Ballistic Cannon . | . . . Launcher . | . . . Special Weapon . | . . . Impact Weapon 1 | . 1 . Slashing Weapon . | . . . Piercing Weapon . | . . . Special Melee Weapon . | . . . Unidentified Prototypes . | . . . Parts Lost . | . . . Power . | . . . Propulsion . | . . . Utility . | . . . Weapon . | . . . Highest Loss Streak . | . . . Average Slot Usage (%) 90 | . 91 89 Engine 21 | . 22 20 Hover 4 | . 8 . Flight 16 | . 13 20 Hackware 21 | . 22 20 Protection 3 | . . 9 Energy Gun 5 | . 9 . Ballistic Gun 11 | . 12 11 Impact Weapon 5 | . 2 8 Naked Turns . | . . . Heaviest Build 9 | 7 7 9 Greatest Support 20 | 20 20 9 Greatest Overweight (x) . | . . . Average Overweight (x) . | . . . Largest Inventory Capacity 1 | . . 1 Average Capacity . | . . . Most Carried 1 | . . 1 Average Carried . | . . . Final Capacity 1 | . . 1 Final Carried 1 | . . 1 Class Distribution -------------------- 86% | Hacker-Mutant 13% | Mutant Dominant Class ---------------- Hacker-Mutant | -10/Materials Hacker-Mutant | -9/Materials Resources | -11 -10 -9 ----------- Run | Scr Mat Mat Matter Collected 507 | 240 97 170 Remotely . | . . . Salvage Created 772 | 100 279 393 Parts 42 | . 25 17 Haulers Intercepted 3 | . 2 1 Recyclers Shooed . | . . . Parts Field Recycled . | . . . Retrieved Matter . | . . . Parts Self-Destructed . | . . . Prevented . | . . . Kills | -11 -10 -9 ------- Run | Scr Mat Mat Combat Hostiles Destroyed 14 | . 8 6 Melee 1 | . . 1 Guns 13 | . 8 5 Classes Destroyed 9 | 1 7 1 Worker 2 | . 2 . Builder 1 | . 1 . Hauler 3 | . 2 1 Recycler 1 | 1 . . Operator 2 | . 2 . Watcher 1 | . 1 . Swarmer 6 | . 6 . Grunt 5 | . 2 3 Sentry 3 | . . 3 Best Kill Streak 3 | 1 3 2 Combat Bots Only 3 | . 3 2 Max Kills in Single Turn 1 | 1 1 1 Gunslinging . | . . . Exploded . | . . . Melee 1 | . . 1 Uniques/NPCs Destroyed . | . . . Combat | -11 -10 -9 -------- Run | Scr Mat Mat Damage Taken 914 | . 366 548 Core 797 | . 312 485 Absorbed by Shields . | . . . Redirected to Core 392 | . 179 213 Core Remaining (%) 92 | 100 84 . Volleys Fired 86 | 4 49 33 Largest 1 | 1 1 1 Hottest 40 | 40 40 23 Shots Fired 86 | 4 49 33 Gun 86 | 4 49 33 Cannon . | . . . Launcher . | . . . Special . | . . . Kinetic 70 | . 37 33 Thermal . | . . . Explosive . | . . . Electromagnetic 16 | 4 12 . Robot Hit Streak 15 | 2 15 11 Robot Miss Streak 6 | 1 6 1 Penetration Max . | . . . Secondary Targets . | . . . Shots Hit Robots 90 | 3 37 50 Core Hits 39 | 2 24 13 Critical Hits . | . . . Critical Kills . | . . . Critical Parts Destroyed . | . . . Melee Attacks 28 | . 3 25 Impact 28 | . 3 25 Slashing . | . . . Piercing . | . . . Sneak Attacks 3 | . 3 . Combat Hostiles . | . . . Follow-up Attacks . | . . . Damage Inflicted 1272 | 49 546 677 Guns 789 | 49 348 392 Cannons . | . . . Explosions 45 | . 45 . Melee 438 | . 153 285 Ramming . | . . . Kinetic 583 | . 191 392 Thermal 45 | . 45 . Explosive . | . . . Electromagnetic 206 | 49 157 . Impact 438 | . 153 285 Slashing . | . . . Piercing . | . . . Highest Corruption . | . . . Average Corruption . | . . . Corruption Purged . | . . . Overload Shots . | . . . Overflow Damage 47 | . 36 11 Projectiles . | . . . Explosions . | . . . Melee 47 | . 36 11 Knockbacks 2 | . 2 . Impact 2 | . 2 . Kinetic . | . . . Secondary . | . . . Self-Inflicted Damage 62 | . 62 . Shots 2 | . 2 . Rammed . | . . . Targets Rammed . | . . . Kicked . | . . . Crushed . | . . . Highest Temperature 30 | . 17 30 Average Temperature 6 | . 3 11 Received Heat Transfer 240 | . 54 186 Siege Activations . | . . . Robots Corrupted . | . . . Combat Hostiles . | . . . Parts Fried 5 | 1 4 . Impact Corruptions 4 | . 2 2 Robots Melted . | . . . Combat Hostiles . | . . . Parts Melted . | . . . Heat Transferred 50 | . 50 . Parts Sabotaged . | . . . Parts Stolen . | . . . Parts Stripped . | . . . Power Chain Reactions 1 | . 1 . Missiles Intercepted . | . . . Alert | -11 -10 -9 ------- Run | Scr Mat Mat Peak Influence 350 | 5 350 304 Average Influence 148 | 2 163 165 Maximum Alert Level 1 | . 1 1 Low Security (%) 66 | 100 64 60 Level 1 33 | . 35 39 Level 2 . | . . . Level 3 . | . . . Level 4 . | . . . Level 5 . | . . . High Security . | . . . Max Security . | . . . Squads Dispatched 1 | . 1 . Investigation . | . . . Extermination . | . . . Reinforcement 1 | . 1 . Assault . | . . . Garrison . | . . . Intercept . | . . . Construction Impeded . | . . . Haulers Reinforced . | . . . Stealth | -11 -10 -9 --------- Run | Scr Mat Mat Distress Signals 1 | . 1 . Communications Jammed . | . . . Distress Signals . | . . . Times Spotted 28 | . 15 13 Peak Tracking Total 7 | . 5 7 Tactical Retreats 5 | . 2 3 Traps | -11 -10 -9 ------- Run | Scr Mat Mat Traps Triggered 1 | . . 1 Indirectly . | . . . Trap Hack Attempts . | . . . Triggered . | . . . Disarmed . | . . . Reprogrammed . | . . . Reused . | . . . Traps Extracted . | . . . Installed . | . . . Triggered . | . . . Machines | -11 -10 -9 ---------- Run | Scr Mat Mat Machines Disabled 1 | . 1 . Max in Single Turn 1 | . 1 . Machines Sabotaged . | . . . Garrisons Compromised . | . . . Overloaded Fab Kills . | . . . Fab Network Shutdowns . | . . . Hacking | -11 -10 -9 --------- Run | Scr Mat Mat Machines Accessed 8 | . 6 2 Terminals 8 | . 6 2 Fabricators . | . . . Repair Stations . | . . . Recycling Units . | . . . Scanalyzers . | . . . Garrison Access . | . . . Total Hacks 24 | . 18 6 Successful 15 | . 11 4 Failed 9 | . 7 2 Catastrophic . | . . . Database Lockouts . | . . . Manual 22 | . 16 6 Terminals 24 | . 18 6 Fabricators . | . . . Repair Stations . | . . . Recycling Units . | . . . Scanalyzers . | . . . Garrison Access . | . . . Terminal Hacks 5 | . 4 1 Terminal Index 3 | . 2 1 Locate Traps 1 | . 1 . Recall Reinforcements 1 | . 1 . Fabricator Hacks . | . . . Repair Station Hacks . | . . . Recycling Unit Hacks . | . . . Scanalyzer . | . . . Garrison Access Hacks . | . . . Unauthorized Hacks 25 | . 19 6 Terminals 10 | . 7 3 Assimilate 2 | . 2 . Botnet 5 | . 3 2 Detonate 1 | . 1 . Operators 2 | . 1 1 Fabricators . | . . . Repair Stations . | . . . Recycling Units . | . . . Scanalyzers . | . . . Garrison Access . | . . . Data Cores Recovered . | . . . Used . | . . . Hacking Detections 6 | . 4 2 Full Trace Events 1 | . 1 . Feedback Events . | . . . Feedback Blocked . | . . . Robot Schematics Acquired . | . . . Robots Built . | . . . Matter . | . . . Time . | . . . Total Robot Build Rating . | . . . Part Schematics Acquired . | . . . Parts Built . | . . . Matter . | . . . Time . | . . . Total Part Build Rating . | . . . Parts Repaired . | . . . Time . | . . . Parts Recycled . | . . . Recycled Matter . | . . . Retrieved Matter . | . . . Retrieved Components . | . . . Parts Scanalyzed . | . . . Part Schematics Acquired . | . . . Parts Damaged . | . . . Bothacking | -11 -10 -9 ------------ Run | Scr Mat Mat Used RIF Installer . | . . . Robots Hacked . | . . . Non-combat . | . . . Combat . | . . . Robot Hacks Applied . | . . . Relay Couplers Released . | . . . Robots Rewired . | . . . Allies Hacked . | . . . Hacks Repelled . | . . . Allies | -11 -10 -9 -------- Run | Scr Mat Mat Total Allies 1 | . 1 . Largest Group 1 | . 1 . Highest-Rated Group 10 | . 10 . Highest-Rated Ally 10 | . 10 . Total Orders . | . . . Ally Attacks . | . . . Total Damage . | . . . Kills . | . . . Allies Corrupted . | . . . Allies Melted . | . . . Intel | -11 -10 -9 ------- Run | Scr Mat Mat Robot Analysis Total . | . . . Derelict Logs Recovered . | . . . Drone Launches . | . . . Drone Recoveries . | . . . Exploration | -11 -10 -9 ------------- Run | Scr Mat Mat Turns Passed 795 | 79 421 295 Spaces Moved 900 | 45 572 283 Core 66 | 6 60 . Treads 44 | 39 5 . Legs . | . . . Wheels . | . . . Hover 201 | . 201 . Flight 589 | . 306 283 Fastest Speed 40 | 50 40 40 Average Speed 51 | 145 49 40 Slowest Speed 160 | 160 160 40 Overloaded Moves . | . . . Propulsion Burnouts . | . . . Robots Hopped 4 | . 3 1 Cave-ins Triggered . | . . . Exploration Rate (%) 39 | 4 89 24 Regions Visited 2 Branch Regions . Pre-discovered Areas . | . . . Known Exits Taken . | . . . Unknown Exits Taken 2 | 1 1 . Scrap Searched . | . . . Spaces Dug . | . . . Terrain Destroyed 3 | . 3 . Melee . | . . . Projectile . | . . . AOE 3 | . 3 . Actions | -11 -10 -9 --------- Run | Scr Mat Mat Total 1113 | 53 661 399 Wait 66 | . 18 48 Move 890 | 44 565 281 Hop 4 | . 3 1 Pick Up . | . . . Fast Attach 15 | 4 6 5 Attach . | . . . Detach 1 | . . 1 Swap 2 | . . 2 Drop 9 | 1 5 3 Fire 86 | 4 49 33 Melee 28 | . 3 25 Ram . | . . . Kick . | . . . Crush . | . . . Escape Stasis . | . . . Rewire . | . . . Trap . | . . . Miscellaneous 12 | . 12 . Route ------- -11/Scrapyard -10/Materials (discovered 3 exits: *Mat x3) -9/Materials (discovered 1 exit: [*Mat]) History --------- Turn | Location | Event 3 | -11/Scrapyard | Discovered new exit (range 16) 80 | -11/Scrapyard | Entered Materials 108 | -10/Materials | Discovered new exit (range 14) 230 | -10/Materials | Discovered new exit (range 10) 400 | -10/Materials | Discovered new exit (range 10) 410 | -10/Materials | Build established: Hacker-Mutant 501 | -10/Materials | Entered another Materials area 503 | -9/Materials | Reached level 2 503 | -9/Materials | Upgraded with Utility slot (x1) 613 | -9/Materials | Core integrity fell below 50% 673 | -9/Materials | Reached level 3 776 | -9/Materials | Discovered new exit (range 6) 796 | -9/Materials | Self-destructed Last Messages --------------- Downloaded coordinate data. >>Trojan(Operators) Trojan loaded successfully. Testing... Operator tracking enabled and active. 00757_ Y-45 Defender destroyed. 00762_ Connecting with Terminal... >>Trojan(Botnet) Trojan loaded successfully. Testing... Terminal linked with 1 system. Awaiting botnet instructions. 00773_ Dropped Flight Unit. 00776_ EXIT=FOUND 00782_ T-07 Excavator is excavating. 00786_ A-02 Transporter destroyed. 00788_ Acquired 50 matter. 00788_ Extracted 2 energy. 00789_ Extracted 1 energy. 00790_ K-01 Serf collects debris. Map ----- +----------------------------------------------------+ | ??????????+ #= """""#????????????? | | ??????????# # """""#????????????? | | ??????????# # #????????????? | | ??????????# #####+####????????????? | | ?????#????# #???# #???????????????? | | ?????# #### ##### ####????????????? | | ?????# +????????????? | | ?????# ###+?????????? | | ?????### # ### ??? | | ?????????# #?# < ?? | | ?????????#u #?# ??? | | ?????????# !#?####### ??? | | ?????????#!!########? ???? | | ?????????#] # #? ???? | | ?????????#!!# #?? ???? | | ?????????# !# #??+########????? | | ?????????# + #???????????????? | | ?????????# # #???????????????? | | ?????????# # #???????????????? | | ?????????# ########???????????????? | | ?????????# #??????????????????????? | | ?????????# #??????????????????????? | | ?????????# #??????????????????????? | | ?????????# #??????????????????????? | | ?????????# #??????????????????????? | | ?????????# @#??????????????????????? | | ?????????# #??????????????????????? | | ?????????# #??????????????????????? | | ?????????# #??????????????????????? | | ?????????+ #??????????????????????? | | ?????????# #??????????????????????? | | ?????????# #??????????????????????? | | ?????????# #??????????????????????? | | ?????????# ??????????????????????? | | ?????????# ??????????????????????? | | ?????????# ??????????????????????? | | ?????????## ??????????????????????? | | ??????????? ??????????????????????? | | ??????????? ??????????????????????? | | ??????????? ??????????????????????? | | ???????????ss??????????????????????? | | ???????????????????????????????????? | | ???????????????????????????????????? | | ???????????????????????????????????? | | ???????????????????????????????????? | | ???????????????????????????????????? | | ???????????????????????????????????? | | ???????????????????????????????????? | | ???????????????????????????????????? | | ???????????????????????????????????? | +----------------------------------------------------+ Best States ------------- Heat Dissipation 25 Energy Generation 10 Energy Capacity 250 Matter Stores 300 Matter Capacity 300 Sight Range 16 Terrain Scan Density 10 Armor Coverage 150 Resistance: KI 5 Resistance: TH 5 Resistance: EX 5 Evasion (%) 62 Recoil Reduction 1 Offensive Hacking 20 Defensive Hacking 10 Item Schematics ----------------- None Robot Schematics ------------------ None Fabricated ------------ Nothing Alien Tech Used ----------------- None Achievements -------------- None Challenges ------------ None RPGLIKE | -11 -10 -9 --------- Run | Scr Mat Mat Levels Raised 2 | . . 2 XP Earned 6505 | 3000 1130 2375 XP Spent 3080 | . 1400 1680 Upgrades 18 | . 5 13 Utility Slot 1 | . . 1 Core Integrity 8 | . . 8 Mass Support 1 | . 1 . Inventory Capacity 1 | . . 1 Hack Attack % 2 | . 2 . Hack Defense % 2 | . 2 . KI Resistance % 1 | . . 1 TH Resistance % 1 | . . 1 EX Resistance % 1 | . . 1 Protomatter Created 191 | . 141 50 Integrity Restored 252 | . 252 . Core 220 | . 220 . Parts 32 | . 32 . Protomatter Decayed 105 | . 55 50 Game ------ Seed CouplerAccelerationInjector Manual? 0 Play Time 00:14:50 Cumulative 387.7 hours Start 2019.12.17 @ 11:02:43 End 2019.12.17 @ 11:14:15 Sessions 1 Manual Loads 0 Difficulty Rogue Special Mode Winter2019/RPGLIKE Game No. 695 Rogue 695 Adventurer 0 Explorer 0 Win Type - Total 28 Types 21/0/3/3/1/0/0 Lore% 93 Gallery% 90 Achievement% 79 Wizard Run 0 Options --------- ASCII 1 Keyboard 0 Movement Numpad Keybinds 0 Fullscreen 0 Font 14/SmallcapsGlow Map View 76x50 Tactical HUD 1 Map Filters NONE Filters NONE Steam 1 RUN: a0f05204-6260-473a-87a1-5c9111d74b56